[Event "Galicia-ch U18 2021"]
[Site "Padron"]
[Date "2021.04.01"]
[Round "1.5"]
[White "Perez Dapoza, Cesar"]
[Black "Fernandez Lopez, Ricardo"]
[Result "0-1"]
[ECO "A04"]
[WhiteElo "1885"]
[BlackElo "1579"]
[Annotator "NA RC"]
[PlyCount "54"]
[EventDate "2021.04.02"]
[EventType "swiss"]
[EventCountry "ESP"]
[SourceTitle "playchess.com"]
[Source "ChessBase"]
[SourceQuality "1"]
[TimeControl "5400+30"]

1. Nf3 {[%emt 0:00:00]} f5 {[%emt 0:00:00]} 2. c4 {[%emt 0:00:21]} Nf6 {[%emt 0:00:04]} 3. d4 {[%emt 0:01:04]} e6 {[%emt 0:00:21]} 4. g3 {[%emt 0:00:48]} c6 {[%emt 0:00:54]} 5. Bg2 {[%emt 0:01:14]} d5 {[%emt 0:00:25]} 6. Qc2 {[%emt 0:00:10]} Bd6 {[%emt 0:00:38]} 7. O-O {[%emt 0:02:02]} O-O {[%emt 0:00:21]} 8. Nc3 {[%emt 0:00:27]} Ne4 {[%emt 0:01:34]} 9. c5 {[%emt 0:03:49]} Bc7 {[%emt 0:00:28]} 10. Rb1 {[%emt 0:09:31]} Nd7 {[%emt 0:01:32]} 11. b4 {[%emt 0:01:36]} e5 {[%emt 0:02:19]} 12. dxe5 {[%emt 0:01:16]} Nxe5 {[%emt 0:01:08]} 13. Rd1 {[%emt 0:10:36]} Ng4 {[%emt 0:07:33]} 14. Nxe4 {[%emt 0:05:46]} fxe4 {[%emt 0:01:04]} 15. Ng5 {[%emt 0:00:28]} Nxf2 {[%emt 0:07:06]} 16. Rf1 {[%emt 0:14:22]} Ng4 {[%emt 0:03:39]} 17. Bxe4 {[%emt 0:03:38]} Rxf1+ {[%emt 0:02:18]} 18. Kxf1 {[%emt 0:00:20]} dxe4 {[%emt 0:08:52]} 19. Qc4+ {[%emt 0:00:35]} Qd5 {[%emt 0:00:35]} 20. Qxd5+ {[%emt 0:08:55]} cxd5 {[%emt 0:00:09]} 21. Kg2 {[%emt 0:00:13]} Bf5 {[%emt 0:03:13]} 22. b5 {[%emt 0:01:38]} Ne5 {[%emt 0:01:40]} 23. Bf4 {[%emt 0:00:40]} Rc8 {[%emt 0:01:11]} 24. Rd1 {[%emt 0:00:39]} Nc4 {[%emt 0:02:41]} 25. Bc1 {[%emt 0:01:26]} Rd8 {[%emt 0:02:39]} 26. Rf1 {[%emt 0:00:42]} Rf8 {[%emt 0:01:30]} 27. a4 {[%emt 0:01:59]} h6 {[%emt 0:00:37]} 0-1

[Event "Galicia-ch U18 2021"]
[Site "Padron"]
[Date "2021.04.01"]
[Round "1.6"]
[White "Vazquez Velasco, Adrian"]
[Black "Reboredo Martinez, Claudio"]
[Result "0-1"]
[ECO "B21"]
[WhiteElo "1541"]
[BlackElo "1880"]
[Annotator "NA RC"]
[PlyCount "99"]
[EventDate "2021.04.02"]
[EventType "swiss"]
[EventCountry "ESP"]
[SourceTitle "playchess.com"]
[Source "ChessBase"]
[SourceQuality "1"]
[TimeControl "5400+30"]

1. e4 {[%emt 0:00:00]} c5 {[%emt 0:00:00]} 2. d4 {[%emt 0:00:00]} cxd4 {[%emt 0:00:00]} 3. c3 {[%emt 0:00:00]} d3 {[%emt 0:00:00]} 4. Bxd3 {[%emt 0:00:00]} Nc6 {[%emt 0:00:13]} 5. Nf3 {[%emt 0:00:00]} d6 {[%emt 0:00:58]} 6. h3 {[%emt 0:00:24]} g6 {[%emt 0:00:33]} 7. O-O {[%emt 0:00:29]} Bg7 {[%emt 0:00:13]} 8. c4 {[%emt 0:00:14]} Nf6 {[%emt 0:00:05]} 9. Nc3 {[%emt 0:00:09]} O-O {[%emt 0:00:12]} 10. Be3 {[%emt 0:00:04]} Nd7 {[%emt 0:01:13]} 11. Qd2 {[%emt 0:02:34]} Nc5 {[%emt 0:13:40]} 12. Bh6 {[%emt 0:05:45]} Ne5 {[%emt 0:03:46]} 13. Nxe5 {[%emt 0:16:36]} dxe5 {[%emt 0:02:43]} 14. Bxg7 {[%emt 0:01:33]} Kxg7 {[%emt 0:01:10]} 15. Rfd1 {[%emt 0:02:41]} b6 {[%emt 0:17:37]} 16. b4 {[%emt 0:11:49]} Qxd3 {[%emt 0:05:34]} 17. Qxd3 {[%emt 0:00:51]} Nxd3 {[%emt 0:00:03]} 18. Rxd3 {[%emt 0:00:02]} Be6 {[%emt 0:01:39]} 19. Nd5 {[%emt 0:05:13]} Rac8 {[%emt 0:02:38]} 20. Rc1 {[%emt 0:03:19]} Rfd8 {[%emt 0:03:11]} 21. Rcc3 {[%emt 0:04:52]} Kf8 {[%emt 0:04:15]} 22. a3 {[%emt 0:05:26]} Rc6 {[%emt 0:05:54]} 23. Nc7 {[%emt 0:16:06]} Rxd3 {[%emt 0:02:58]} 24. Nxe6+ {[%emt 0:00:10]} fxe6 {[%emt 0:00:37]} 25. Rxd3 {[%emt 0:00:08]} Rxc4 {[%emt 0:00:04]} 26. f3 {[%emt 0:09:23]} a5 {[%emt 0:01:36]} 27. Rb3 {[%emt 0:06:22]} a4 {[%emt 0:05:35]} 28. Rd3 {[%emt 0:00:12]} Ke8 {[%emt 0:00:18]} 29. Kf1 {[%emt 0:02:06]} Rc2 {[%emt 0:01:14]} 30. Rd1 {[%emt 0:03:06]} Rc3 {[%emt 0:01:19]} 31. Ra1 {[%emt 0:00:01]} Kf7 {[%emt 0:04:57]} 32. Ra2 {[%emt 0:01:25]} Kf6 {[%emt 0:06:05]} 33. Kf2 {[%emt 0:01:04]} h5 {[%emt 0:04:12]} 34. h4 {[%emt 0:01:36]} g5 {[%emt 0:01:11]} 35. Kg3 {[%emt 0:01:01]} Kg6 {[%emt 0:03:56]} 36. Kh3 {[%emt 0:00:58]} Rc1 {[%emt 0:01:27]} 37. hxg5 {[%emt 0:01:24]} Kxg5 {[%emt 0:00:11]} 38. Kh2 {[%emt 0:00:01]} Kf4 {[%emt 0:01:39]} 39. Rf2 {[%emt 0:01:43]} Ke3 {[%emt 0:00:18]} 40. Ra2 {[%emt 0:00:16]} Kd3 {[%emt 0:00:43]} 41. g4 {[%emt 0:00:48]} hxg4 {[%emt 0:00:49]} 42. fxg4 {[%emt 0:00:07]} Kxe4 {[%emt 0:00:32]} 43. Re2+ {[%emt 0:00:49]} Kf4 {[%emt 0:00:33]} 44. g5 {[%emt 0:00:15]} Kxg5 {[%emt 0:01:02]} 45. Rxe5+ {[%emt 0:00:04]} Kf6 {[%emt 0:00:30]} 46. Rb5 {[%emt 0:00:31]} Rc6 {[%emt 0:00:32]} 47. Rh5 {[%emt 0:00:02]} Rd6 {[%emt 0:01:45]} 48. Rh6+ {[%emt 0:01:18]} Ke5 {[%emt 0:00:08]} 49. Rh5+ {[%emt 0:00:57]} Kd4 {[%emt 0:00:06]} 50. Rh4+ 0-1

[Event "Galicia-ch U18 2021"]
[Site "Padron"]
[Date "2021.04.01"]
[Round "2.3"]
[White "Reboredo Martinez, Claudio"]
[Black "Rey Chimera, Luca"]
[Result "1/2-1/2"]
[ECO "C15"]
[WhiteElo "1880"]
[BlackElo "1639"]
[Annotator "NA RC"]
[PlyCount "70"]
[EventDate "2021.04.02"]
[EventType "swiss"]
[EventCountry "ESP"]
[SourceTitle "playchess.com"]
[Source "ChessBase"]
[SourceQuality "1"]
[TimeControl "5400+30"]

1. e4 {[%emt 0:00:00]} e6 {[%emt 0:00:00]} 2. d4 {[%emt 0:00:00]} d5 {[%emt 0:00:00]} 3. Nc3 {[%emt 0:00:00]} Bb4 {[%emt 0:00:11]} 4. Bd2 {[%emt 0:00:28]} dxe4 {[%emt 0:02:20]} 5. Qg4 {[%emt 0:00:13]} Nf6 {[%emt 0:02:39]} 6. Qxg7 {[%emt 0:00:04]} Rg8 {[%emt 0:00:12]} 7. Qh6 {[%emt 0:00:10]} Rg6 {[%emt 0:02:30]} 8. Qh4 {[%emt 0:02:11]} Rg4 {[%emt 0:02:18]} 9. Qh3 {[%emt 0:00:20]} e5 {[%emt 0:10:28]} 10. dxe5 {[%emt 0:09:54]} e3 {[%emt 0:00:36]} 11. Qxe3 {[%emt 0:04:07]} Ne4 {[%emt 0:01:52]} 12. O-O-O {[%emt 0:08:23]} Bc5 {[%emt 0:02:09]} 13. Qxe4 {[%emt 0:14:43]} Rxe4 {[%emt 0:00:23]} 14. Nxe4 {[%emt 0:00:04]} Be7 {[%emt 0:05:32]} 15. Bc3 {[%emt 0:04:23]} Bg5+ {[%emt 0:02:15]} 16. Nxg5 {[%emt 0:02:49]} Qxg5+ {[%emt 0:00:08]} 17. Bd2 {[%emt 0:03:42]} Qg6 {[%emt 0:02:03]} 18. Nf3 {[%emt 0:02:40]} Nc6 {[%emt 0:06:03]} 19. Bd3 {[%emt 0:09:46]} Qg7 {[%emt 0:05:22]} 20. Bg5 {[%emt 0:02:10]} Be6 {[%emt 0:05:04]} 21. Bb5 {[%emt 0:04:06]} a6 {[%emt 0:02:18]} 22. Bxc6+ {[%emt 0:00:44]} bxc6 {[%emt 0:00:05]} 23. Rd2 {[%emt 0:03:56]} Bd5 {[%emt 0:05:21]} 24. Rhd1 {[%emt 0:02:09]} f6 {[%emt 0:08:57]} 25. Bxf6 {[%emt 0:07:01]} Qg4 {[%emt 0:00:28]} 26. Rd4 {[%emt 0:02:12]} Qxg2 27. Nh4 Qxf2 {[%emt 0:01:44]} 28. c4 {[%emt 0:06:50]} Rb8 {[%emt 0:01:02]} 29. R1d2 {[%emt 0:04:52]} Qe1+ {[%emt 0:00:37]} 30. Rd1 {[%emt 0:00:39]} Qe3+ {[%emt 0:00:15]} 31. Kb1 {[%emt 0:00:52]} Qe2 {[%emt 0:02:40]} 32. R1d2 {[%emt 0:00:42]} Qe1+ {[%emt 0:02:14]} 33. Rd1 {[%emt 0:00:04]} Qc3 {[%emt 0:01:37]} 34. b3 {[%emt 0:02:43]} Rxb3+ {[%emt 0:12:59]} 35. axb3 {[%emt 0:00:11]} Qxb3+ {[%emt 0:00:04]} 1/2-1/2

[Event "Galicia-ch U18 2021"]
[Site "Padron"]
[Date "2021.04.01"]
[Round "2.4"]
[White "Quintas Fernandez, Paula"]
[Black "Martinez Montes, Juan Manuel"]
[Result "0-1"]
[ECO "B23"]
[WhiteElo "1671"]
[BlackElo "1873"]
[Annotator "NA RC"]
[PlyCount "82"]
[EventDate "2021.04.02"]
[EventType "swiss"]
[EventCountry "ESP"]
[SourceTitle "playchess.com"]
[Source "ChessBase"]
[SourceQuality "1"]
[TimeControl "5400+30"]

1. e4 {[%emt 0:00:00]} c5 {[%emt 0:00:00]} 2. Nc3 {[%emt 0:00:00]} d6 {[%emt 0:00:00]} 3. Bc4 {[%emt 0:01:08]} Nc6 {[%emt 0:00:00]} 4. f4 {[%emt 0:00:51]} Nf6 {[%emt 0:00:00]} 5. d3 {[%emt 0:03:01]} g6 {[%emt 0:02:39]} 6. Nf3 {[%emt 0:02:32]} Bg7 {[%emt 0:00:44]} 7. O-O {[%emt 0:02:13]} O-O {[%emt 0:02:19]} 8. a3 {[%emt 0:09:04]} a6 {[%emt 0:04:41]} 9. Qe1 {[%emt 0:17:08]} b5 {[%emt 0:00:28]} 10. Bb3 {[%emt 0:04:36]} Qb6 {[%emt 0:00:27]} 11. Kh1 {[%emt 0:09:46]} Bb7 {[%emt 0:01:27]} 12. Qh4 {[%emt 0:07:06]} Nd4 13. Nxd4 {[%emt 0:07:28]} cxd4 {[%emt 0:00:51]} 14. Ne2 {[%emt 0:03:49]} e6 {[%emt 0:04:37]} 15. Qf2 {[%emt 0:04:04]} Nd7 {[%emt 0:02:12]} 16. f5 {[%emt 0:06:18]} d5 {[%emt 0:00:31]} 17. exd5 {[%emt 0:07:46]} exf5 {[%emt 0:00:31]} 18. Bf4 {[%emt 0:01:26]} Qc5 {[%emt 0:00:29]} 19. d6 {[%emt 0:03:31]} Rac8 {[%emt 0:00:55]} 20. Rac1 {[%emt 0:01:51]} Bd5 {[%emt 0:03:46]} 21. Bxd5 {[%emt 0:01:12]} Qxd5 {[%emt 0:00:02]} 22. b3 {[%emt 0:00:58]} Rc6 {[%emt 0:00:25]} 23. Ng3 {[%emt 0:05:06]} Rfc8 {[%emt 0:00:48]} 24. Qd2 {[%emt 0:00:29]} Be5 {[%emt 0:00:38]} 25. Bxe5 {[%emt 0:00:24]} Qxe5 {[%emt 0:00:33]} 26. Ne2 {[%emt 0:00:39]} Qxd6 {[%emt 0:00:12]} 27. b4 {[%emt 0:00:32]} Nf6 {[%emt 0:00:15]} 28. Qf4 {[%emt 0:00:27]} Qxf4 {[%emt 0:00:11]} 29. Rxf4 {[%emt 0:00:12]} Rxc2 {[%emt 0:00:06]} 30. Rxc2 {[%emt 0:00:11]} Rxc2 {[%emt 0:00:01]} 31. Ng1 {[%emt 0:00:14]} Ng4 {[%emt 0:00:36]} 32. h3 {[%emt 0:00:35]} Nf2+ {[%emt 0:00:06]} 33. Kh2 {[%emt 0:00:12]} Nxd3 {[%emt 0:00:19]} 34. Rxd4 {[%emt 0:00:19]} Rc3 {[%emt 0:00:04]} 35. Nf3 {[%emt 0:01:24]} Rxa3 {[%emt 0:00:18]} 36. Nd2 {[%emt 0:00:36]} Ne5 {[%emt 0:00:15]} 37. Rd5 {[%emt 0:00:43]} Rd3 {[%emt 0:00:11]} 38. Rxe5 {[%emt 0:00:22]} Rxd2 {[%emt 0:00:05]} 39. Re8+ {[%emt 0:00:16]} Kg7 {[%emt 0:00:01]} 40. Ra8 {[%emt 0:00:22]} Ra2 {[%emt 0:00:04]} 41. Kg3 {[%emt 0:00:47]} Ra4 {[%emt 0:00:05]} 0-1

[Event "Galicia-ch U18 2021"]
[Site "Padron"]
[Date "2021.04.01"]
[Round "2.5"]
[White "Alvarez Pampillon, Antonio"]
[Black "Vazquez Porta, Andres"]
[Result "0-1"]
[ECO "D05"]
[WhiteElo "1860"]
[BlackElo "1580"]
[Annotator "NA RC"]
[PlyCount "92"]
[EventDate "2021.04.02"]
[EventType "swiss"]
[EventCountry "ESP"]
[SourceTitle "playchess.com"]
[Source "ChessBase"]
[SourceQuality "1"]
[TimeControl "5400+30"]

1. d4 {[%emt 0:00:00]} Nf6 {[%emt 0:00:00]} 2. Nf3 {[%emt 0:00:00]} d5 {[%emt 0:01:27]} 3. e3 {[%emt 0:00:24]} e6 {[%emt 0:00:17]} 4. Bd3 {[%emt 0:00:05]} Bd6 {[%emt 0:00:05]} 5. O-O {[%emt 0:00:11]} O-O {[%emt 0:00:22]} 6. b3 {[%emt 0:00:23]} b6 {[%emt 0:00:13]} 7. Bb2 {[%emt 0:00:13]} Bb7 {[%emt 0:00:02]} 8. c4 {[%emt 0:00:36]} Nbd7 {[%emt 0:04:27]} 9. Nc3 {[%emt 0:01:57]} a6 {[%emt 0:04:38]} 10. Re1 {[%emt 0:01:58]} Ne4 {[%emt 0:00:25]} 11. Qc2 {[%emt 0:09:28]} f5 {[%emt 0:01:23]} 12. Ne5 {[%emt 0:09:12]} Nxe5 {[%emt 0:19:07]} 13. dxe5 {[%emt 0:00:14]} Bxe5 {[%emt 0:03:06]} 14. Nxe4 {[%emt 0:00:45]} Bxb2 {[%emt 0:00:24]} 15. Qxb2 {[%emt 0:00:16]} fxe4 {[%emt 0:00:49]} 16. Bf1 {[%emt 0:00:19]} Qf6 {[%emt 0:02:10]} 17. Qxf6 {[%emt 0:13:50]} Rxf6 {[%emt 0:00:27]} 18. c5 {[%emt 0:00:12]} Raf8 {[%emt 0:02:01]} 19. Re2 {[%emt 0:18:20]} e5 {[%emt 0:02:10]} 20. Rc1 {[%emt 0:11:49]} d4 {[%emt 0:07:22]} 21. c6 {[%emt 0:26:21]} Bxc6 {[%emt 0:05:08]} 22. exd4 {[%emt 0:00:16]} exd4 {[%emt 0:00:13]} 23. Rec2 {[%emt 0:00:16]} d3 {[%emt 0:03:27]} 24. Rd2 {[%emt 0:00:39]} Bb5 {[%emt 0:00:51]} 25. a4 {[%emt 0:00:38]} Bc6 {[%emt 0:11:53]} 26. f3 {[%emt 0:00:07]} exf3 {[%emt 0:02:16]} 27. Bxd3 {[%emt 0:04:24]} fxg2 {[%emt 0:03:23]} 28. Rdc2 {[%emt 0:00:34]} Bd5 {[%emt 0:03:16]} 29. b4 {[%emt 0:00:15]} c6 {[%emt 0:00:45]} 30. Bxa6 {[%emt 0:00:35]} b5 {[%emt 0:00:50]} 31. Rxg2 {[%emt 0:00:34]} Bxg2 32. Kxg2 {[%emt 0:00:02]} bxa4 {[%emt 0:00:28]} 33. Ra1 {[%emt 0:00:25]} Rg6+ {[%emt 0:02:03]} 34. Kh1 {[%emt 0:00:18]} Rg4 {[%emt 0:00:46]} 35. Rxa4 {[%emt 0:00:17]} Rb8 {[%emt 0:00:37]} 36. Be2 {[%emt 0:00:38]} Rgxb4 {[%emt 0:00:09]} 37. Ra7 {[%emt 0:00:14]} Rf8 {[%emt 0:03:00]} 38. Bh5 {[%emt 0:01:40]} g6 {[%emt 0:00:34]} 39. Be2 {[%emt 0:00:08]} Rf2 {[%emt 0:00:22]} 40. Ra8+ {[%emt 0:00:53]} Kg7 {[%emt 0:00:07]} 41. Ra1 {[%emt 0:00:13]} Rxe2 {[%emt 0:00:08]} 42. h4 {[%emt 0:00:05]} Rxh4+ 43. Kg1 Rhe4 {[%emt 0:00:28]} 44. Ra6 {[%emt 0:00:12]} Re6 {[%emt 0:00:14]} 45. Kh1 {[%emt 0:00:07]} Rb2 {[%emt 0:00:21]} 46. Ra1 {[%emt 0:00:04]} c5 {[%emt 0:00:05]} 0-1

[Event "Galicia-ch U18 2021"]
[Site "Padron"]
[Date "2021.04.01"]
[Round "2.6"]
[White "Reza Salgado, Marcos"]
[Black "Quintas Fernandez, Marta"]
[Result "1-0"]
[ECO "D03"]
[WhiteElo "1660"]
[BlackElo "1788"]
[Annotator "NA RC"]
[PlyCount "105"]
[EventDate "2021.04.02"]
[EventType "swiss"]
[EventCountry "ESP"]
[SourceTitle "playchess.com"]
[Source "ChessBase"]
[SourceQuality "1"]
[TimeControl "5400+30"]

1. d4 {[%emt 0:00:00]} d5 {[%emt 0:00:00]} 2. Nf3 {[%emt 0:00:00]} Nf6 {[%emt 0:00:00]} 3. Bg5 {[%emt 0:00:30]} e6 {[%emt 0:01:40]} 4. Nbd2 {[%emt 0:00:47]} Be7 {[%emt 0:01:45]} 5. e3 {[%emt 0:01:11]} b6 {[%emt 0:01:36]} 6. Bd3 {[%emt 0:02:24]} Bb7 {[%emt 0:00:33]} 7. O-O {[%emt 0:03:29]} Nbd7 {[%emt 0:01:28]} 8. Qe2 {[%emt 0:05:16]} Ne4 {[%emt 0:05:00]} 9. Bxe7 {[%emt 0:02:05]} Qxe7 {[%emt 0:00:10]} 10. c3 {[%emt 0:06:27]} O-O {[%emt 0:02:10]} 11. Rfd1 {[%emt 0:02:07]} c5 {[%emt 0:08:43]} 12. a4 {[%emt 0:03:01]} Nxd2 {[%emt 0:03:14]} 13. Rxd2 {[%emt 0:02:47]} c4 {[%emt 0:03:47]} 14. Bc2 {[%emt 0:00:48]} a6 {[%emt 0:01:25]} 15. e4 {[%emt 0:00:50]} b5 {[%emt 0:01:46]} 16. exd5 {[%emt 0:02:00]} Bxd5 {[%emt 0:01:21]} 17. Ne5 {[%emt 0:06:00]} f6 {[%emt 0:11:25]} 18. Ng4 {[%emt 0:06:32]} Rfe8 {[%emt 0:05:02]} 19. Ne3 {[%emt 0:01:32]} Bc6 {[%emt 0:01:02]} 20. h3 {[%emt 0:04:14]} Nb6 {[%emt 0:01:08]} 21. axb5 {[%emt 0:14:29]} axb5 {[%emt 0:00:24]} 22. Re1 {[%emt 0:00:35]} Qb7 {[%emt 0:03:43]} 23. Qg4 {[%emt 0:01:49]} Rad8 {[%emt 0:10:58]} 24. Rde2 {[%emt 0:00:26]} Bd7 {[%emt 0:01:08]} 25. Qh5 {[%emt 0:00:55]} h6 {[%emt 0:10:12]} 26. Nf5 {[%emt 0:00:42]} Bc8 {[%emt 0:04:16]} 27. Nd6 {[%emt 0:01:00]} Qc6 {[%emt 0:04:13]} 28. Qf7+ {[%emt 0:01:37]} Kh8 {[%emt 0:00:15]} 29. Nxe8 {[%emt 0:00:06]} Qxe8 {[%emt 0:03:11]} 30. Qxe8+ {[%emt 0:00:40]} Rxe8 {[%emt 0:00:31]} 31. Bf5 {[%emt 0:00:20]} Nd5 {[%emt 0:00:52]} 32. g3 {[%emt 0:00:45]} Nc7 {[%emt 0:00:15]} 33. Be4 {[%emt 0:01:18]} Rd8 {[%emt 0:02:04]} 34. Ra1 {[%emt 0:01:08]} Ba6 {[%emt 0:00:28]} 35. Rd2 {[%emt 0:02:21]} Rd6 {[%emt 0:03:08]} 36. f4 {[%emt 0:02:50]} f5 {[%emt 0:05:30]} 37. Bf3 {[%emt 0:00:35]} g6 {[%emt 0:00:15]} 38. Re2 {[%emt 0:00:11]} Kg7 {[%emt 0:00:06]} 39. Re5 {[%emt 0:02:12]} Kf6 {[%emt 0:00:50]} 40. Rc5 {[%emt 0:00:04]} Nd5 {[%emt 0:00:46]} 41. Bxd5 {[%emt 0:00:48]} exd5 {[%emt 0:00:09]} 42. Rc7 {[%emt 0:00:09]} g5 {[%emt 0:00:48]} 43. Re1 {[%emt 0:00:26]} gxf4 {[%emt 0:01:36]} 44. gxf4 {[%emt 0:00:00]} Kg6 {[%emt 0:00:48]} 45. Kf2 {[%emt 0:00:45]} Rb6 {[%emt 0:00:53]} 46. Rg1+ {[%emt 0:01:38]} Kh5 {[%emt 0:00:07]} 47. Rf7 {[%emt 0:01:10]} Bc8 {[%emt 0:00:09]} 48. Rg8 {[%emt 0:02:14]} Rc6 {[%emt 0:00:53]} 49. Rff8 {[%emt 0:01:21]} Bd7 {[%emt 0:00:07]} 50. Rg7 {[%emt 0:00:49]} Bc8 {[%emt 0:00:04]} 51. Kg3 {[%emt 0:00:47]} b4 {[%emt 0:01:22]} 52. Rh8 {[%emt 0:00:06]} bxc3 {[%emt 0:00:31]} 53. Rg5# 1-0

[Event "Galicia-ch U18 2021"]
[Site "Padron"]
[Date "2021.04.02"]
[Round "3.4"]
[White "Rey Chimera, Luca"]
[Black "Gonzalez Taboada, Lorenzo"]
[Result "0-1"]
[ECO "B28"]
[WhiteElo "1639"]
[BlackElo "1609"]
[Annotator "NA"]
[PlyCount "64"]
[EventDate "2021.04.02"]
[EventType "swiss"]
[EventCountry "ESP"]
[SourceTitle "playchess.com"]
[Source "ChessBase"]
[SourceQuality "1"]
[TimeControl "5400+30"]

1. e4 {[%emt 0:00:00]} c5 {[%emt 0:00:00]} 2. Nf3 {[%emt 0:00:27]} a6 {[%emt 0:00:00]} 3. d4 {[%emt 0:02:26]} cxd4 {[%emt 0:00:00]} 4. Nxd4 {[%emt 0:00:09]} Nf6 {[%emt 0:00:07]} 5. Nc3 {[%emt 0:02:45]} e5 {[%emt 0:00:08]} 6. Nf3 {[%emt 0:02:51]} Bb4 {[%emt 0:00:40]} 7. Bc4 {[%emt 0:05:00]} Qc7 {[%emt 0:02:08]} 8. Qd3 {[%emt 0:03:26]} b5 {[%emt 0:07:11]} 9. Bd5 {[%emt 0:00:07]} Nxd5 10. exd5 {[%emt 0:00:15]} d6 {[%emt 0:01:03]} 11. O-O {[%emt 0:00:28]} Bxc3 {[%emt 0:09:57]} 12. bxc3 {[%emt 0:01:58]} Bb7 {[%emt 0:03:22]} 13. Ba3 {[%emt 0:08:16]} Nd7 {[%emt 0:03:52]} 14. Ng5 {[%emt 0:04:04]} Nf6 {[%emt 0:01:39]} 15. f4 {[%emt 0:03:02]} O-O-O {[%emt 0:32:07]} 16. fxe5 {[%emt 0:09:55]} dxe5 {[%emt 0:03:10]} 17. d6 {[%emt 0:00:46]} Qc6 {[%emt 0:02:45]} 18. Qh3+ {[%emt 0:00:23]} Rd7 {[%emt 0:10:54]} 19. Rae1 {[%emt 0:06:17]} Re8 {[%emt 0:05:58]} 20. Rf2 {[%emt 0:09:33]} Kb8 {[%emt 0:00:43]} 21. Rf5 {[%emt 0:07:46]} h6 {[%emt 0:01:43]} 22. Rxf6 {[%emt 0:04:12]} gxf6 {[%emt 0:00:10]} 23. Ne4 {[%emt 0:00:28]} Rg8 {[%emt 0:01:26]} 24. Re2 {[%emt 0:03:29]} Qc4 {[%emt 0:03:52]} 25. Ng3 {[%emt 0:01:08]} Bc6 {[%emt 0:01:40]} 26. Rf2 {[%emt 0:03:17]} Qxc3 {[%emt 0:01:12]} 27. Bc1 {[%emt 0:00:47]} Rxd6 {[%emt 0:01:16]} 28. Qxh6 {[%emt 0:01:23]} Rd1+ {[%emt 0:00:30]} 29. Nf1 {[%emt 0:00:20]} Qe1 {[%emt 0:02:43]} 30. Qxf6 {[%emt 0:01:54]} Qe4 {[%emt 0:01:07]} 31. Bg5 {[%emt 0:00:43]} Qd4 {[%emt 0:01:34]} 32. Bd2 {[%emt 0:03:19]} Rxg2+ {[%emt 0:00:34]} 0-1

[Event "Galicia-ch U18 2021"]
[Site "Padron"]
[Date "2021.04.02"]
[Round "3.5"]
[White "Ferreno Sanmartin, Angel"]
[Black "Reboredo Martinez, Claudio"]
[Result "1-0"]
[ECO "A05"]
[WhiteElo "2152"]
[BlackElo "1880"]
[Annotator "ChessBase"]
[PlyCount "61"]
[EventDate "2021.04.02"]
[EventType "swiss"]
[EventCountry "ESP"]
[SourceTitle "playchess.com"]
[Source "ChessBase"]
[SourceQuality "1"]
[TimeControl "5400+30"]

1. Nf3 {[%emt 0:00:00]} Nf6 {[%emt 0:00:00]} 2. c4 {[%emt 0:00:00]} g6 {[%emt 0:01:17]} 3. g3 {[%emt 0:00:00]} Bg7 {[%emt 0:00:07]} 4. Bg2 {[%emt 0:00:00]} O-O {[%emt 0:00:04]} 5. O-O {[%emt 0:00:01]} c5 {[%emt 0:01:26]} 6. d4 {[%emt 0:04:31]} cxd4 {[%emt 0:02:45]} 7. Nxd4 {[%emt 0:00:07]} Nc6 {[%emt 0:01:07]} 8. Nc3 {[%emt 0:01:04]} Ng4 {[%emt 0:08:34]} 9. Nc2 {[%emt 0:14:22]} d6 {[%emt 0:03:51]} 10. h3 {[%emt 0:01:15]} Nge5 {[%emt 0:02:08]} 11. Ne3 {[%emt 0:13:47]} Be6 {[%emt 0:01:48]} 12. Ncd5 {[%emt 0:00:29]} Na5 {[%emt 0:00:12]} 13. Qa4 {[%emt 0:01:28]} Rc8 {[%emt 0:05:20]} 14. Nxe7+ {[%emt 0:01:40]} Qxe7 {[%emt 0:00:01]} 15. Qxa5 {[%emt 0:00:09]} b6 {[%emt 0:02:57]} 16. Nd5 {[%emt 0:04:56]} Qd7 {[%emt 0:02:01]} 17. Qb5 {[%emt 0:02:39]} Rxc4 {[%emt 0:06:14]} 18. Qxd7 {[%emt 0:00:42]} Nxd7 {[%emt 0:00:27]} 19. Ne3 {[%emt 0:02:38]} Rc5 {[%emt 0:02:40]} 20. Rb1 {[%emt 0:11:23]} a5 {[%emt 0:13:43]} 21. b3 {[%emt 0:01:18]} b5 {[%emt 0:07:12]} 22. Bb2 {[%emt 0:01:05]} d5 {[%emt 0:04:13]} 23. Rfd1 {[%emt 0:01:41]} Nb6 {[%emt 0:03:58]} 24. Bd4 {[%emt 0:01:18]} Rc6 {[%emt 0:02:11]} 25. Bxg7 {[%emt 0:02:27]} Kxg7 {[%emt 0:00:03]} 26. h4 {[%emt 0:02:18]} Rd8 {[%emt 0:03:38]} 27. Rd4 {[%emt 0:00:27]} Nc8 {[%emt 0:01:44]} 28. Rbd1 {[%emt 0:04:38]} Ne7 {[%emt 0:00:30]} 29. Nxd5 {[%emt 0:08:38]} Rcd6 {[%emt 0:02:57]} 30. e4 {[%emt 0:00:13]} f5 {[%emt 0:00:39]} 31. Nf4 {[%emt 0:00:48]} 1-0

[Event "Galicia-ch U18 2021"]
[Site "Padron"]
[Date "2021.04.02"]
[Round "3.6"]
[White "Buitron Ramil, David"]
[Black "Quintas Fernandez, Paula"]
[Result "1-0"]
[ECO "C44"]
[WhiteElo "1934"]
[BlackElo "1671"]
[Annotator "ChessBase"]
[PlyCount "37"]
[EventDate "2021.04.02"]
[EventType "swiss"]
[EventCountry "ESP"]
[SourceTitle "playchess.com"]
[Source "ChessBase"]
[SourceQuality "1"]
[TimeControl "5400+30"]

1. e4 {[%emt 0:05:33]} e5 {[%emt 0:00:00]} 2. Nf3 {[%emt 0:00:06]} Nc6 {[%emt 0:00:08]} 3. d4 {[%emt 0:00:05]} exd4 {[%emt 0:02:26]} 4. Bc4 {[%emt 0:00:07]} Bc5 {[%emt 0:05:15]} 5. c3 {[%emt 0:00:16]} d6 {[%emt 0:03:42]} 6. cxd4 {[%emt 0:00:16]} Bb4+ {[%emt 0:01:32]} 7. Bd2 {[%emt 0:04:41]} Bxd2+ {[%emt 0:01:31]} 8. Nbxd2 {[%emt 0:00:04]} Qf6 {[%emt 0:14:02]} 9. O-O {[%emt 0:01:47]} Nxd4 {[%emt 0:15:33]} 10. Nxd4 {[%emt 0:00:09]} Qxd4 {[%emt 0:03:28]} 11. Qa4+ {[%emt 0:00:08]} Ke7 {[%emt 0:03:39]} 12. Nf3 {[%emt 0:00:32]} Qb6 {[%emt 0:05:26]} 13. e5 {[%emt 0:00:32]} Be6 {[%emt 0:03:50]} 14. exd6+ {[%emt 0:00:10]} cxd6 {[%emt 0:02:47]} 15. Rfe1 {[%emt 0:00:29]} h6 {[%emt 0:01:07]} 16. Bxe6 {[%emt 0:00:38]} fxe6 {[%emt 0:00:13]} 17. Qg4 {[%emt 0:00:06]} Kf8 {[%emt 0:10:24]} 18. Nh4 {[%emt 0:02:02]} Nf6 {[%emt 0:08:06]} 19. Qxe6 {[%emt 0:00:20]} 1-0